bitfinex/quotes_SOLUSD_20241022
["timestamp","ask_amount","ask_price","bid_price","bid_amount"]
[1729636007467,5.9428,168.27,168.23,21.7297949]
[1729636021186,15.1777,168.31,168.23,21.7297949]
[1729636021391,5.943,168.27,168.23,21.7297949]
[1729636025492,5.9434,168.26,168.22,21.7297949]
[1729636025675,5.9434,168.26,168.23,21.7297949]
[1729636029101,5.9434,168.26,168.24,21.7297949]
[1729636030994,5.9414,168.31,168.25,21.7297949]
[1729636031193,5.9413,168.32,168.28,21.7297949]
[1729636032497,5.9413,168.32,168.27,21.7297949]
[1729636038104,5.9413,168.32,168.28,21.7297949]
[1729636040378,16.4335,168.35,168.24,6.238]
[1729636040379,5.9426,168.28,168.24,6.238]
[1729636040578,14.8512,168.34,168.2,22.16949299]
[1729636040579,5.9431,168.27,168.2,6.429]
[1729636040786,5.9431,168.26,168.2,28.1587949]
[1729636040988,5.9431,168.26,168.2,6.429]
[1729636041184,23.776884,168.34,168.23,21.7297949]
[1729636041386,5.9423,168.29,168.23,21.7297949]
[1729636041580,5.942,168.3,168.24,21.7297949]
[1729636041803,5.9421,168.29,168.24,21.7297949]
[1729636042705,5.9421,168.29,168.24,20.0]
[1729636045495,38.627884,168.34,168.24,20.0]
[1729636045693,23.776884,168.34,168.22,20.0]
[1729636045995,5.9407,168.33,168.21,21.7297949]
[1729636046187,5.9427,168.28,168.21,21.7297949]
[1729636047190,5.9427,168.28,168.22,20.0]
[1729636047904,5.9428,168.27,168.22,20.0]
[1729636052812,23.776884,168.31,168.22,20.0]
[1729636053016,5.9425,168.28,168.22,41.7297949]
[1729636053313,23.776884,168.34,168.23,21.7297949]
[1729636054415,5.942,168.3,168.23,21.7297949]
[1729636065602,23.776884,168.34,168.23,21.7297949]
[1729636065825,5.9421,168.29,168.23,21.7297949]
[1729636074010,23.776884,168.34,168.24,21.7297949]
[1729636074011,5.9407,168.33,168.24,21.7297949]
[1729636074320,5.9408,168.33,168.29,21.7297949]
[1729636074909,16.4335,168.35,168.28,21.7297949]
[1729636075115,5.9411,168.32,168.28,21.7297949]
[1729636081125,16.4335,168.35,168.27,21.7297949]
[1729636081326,23.776884,168.34,168.26,20.0]
[1729636082021,5.9418,168.3,168.26,20.0]
[1729636083046,5.9418,168.3,168.26,41.7297949]
[1729636083944,5.9415,168.31,168.26,41.7297949]
[1729636085044,5.9415,168.31,168.26,21.7297949]
[1729636085845,5.9415,168.31,168.27,21.7297949]
[1729636088140,5.9415,168.31,168.26,21.7297949]
[1729636096545,14.8476,168.38,168.3,21.7297949]
[1729636096731,5.9399,168.36,168.31,21.7297949]
[1729636096935,16.3435,168.39,168.32,21.7297949]
[1729636097233,5.9393,168.37,168.32,21.7297949]
[1729636097844,5.939,168.38,168.33,21.7297949]
[1729636098027,5.9383,168.4,168.36,21.7297949]
[1729636101854,5.9383,168.4,168.35,21.7297949]
[1729636104255,5.9383,168.4,168.34,20.0]
[1729636104736,5.9383,168.4,168.34,41.7297949]
[1729636105266,5.9386,168.39,168.34,41.7297949]
[1729636105837,5.9386,168.39,168.34,20.0]
[1729636106759,23.776884,168.41,168.3,10.86489745]
[1729636106946,5.9395,168.37,168.3,21.7297949]
[1729636107258,5.9381,168.41,168.33,21.7297949]
[1729636107464,5.9382,168.4,168.35,21.7297949]
[1729636107951,5.9382,168.4,168.29,6.5092]
[1729636107952,5.9379,168.41,168.36,21.7297949]
[1729636109860,5.9379,168.41,168.35,21.7297949]
[1729636110360,5.9386,168.39,168.33,21.7297949]
[1729636111356,23.776884,168.4,168.32,20.0]
[1729636112054,23.776884,168.4,168.3,20.0]
[1729636112255,5.9395,168.37,168.32,20.0]
[1729636120357,5.9389,168.39,168.33,21.7297949]
[1729636120545,0.5734643,168.42,168.32,20.0]
[1729636120546,0.5734643,168.42,168.34,21.7297949]
[1729636121373,5.9386,168.39,168.33,20.0]
[1729636123076,5.9386,168.39,168.33,41.7297949]
[1729636123776,5.9381,168.41,168.34,21.7297949]
[1729636124073,5.9383,168.4,168.34,21.7297949]
[1729636133992,0.5734643,168.42,168.35,21.7297949]
[1729636134194,5.9382,168.4,168.35,21.7297949]
[1729636135774,5.9382,168.4,168.34,21.7297949]
[1729636136383,5.9382,168.4,168.3,43.776884]
[1729636136684,5.9382,168.4,168.33,21.7297949]
[1729636136882,5.9382,168.4,168.34,20.0]
[1729636138974,5.9382,168.4,168.34,41.7297949]
[1729636142569,0.5734643,168.42,168.34,41.7297949]
[1729636142793,5.9386,168.39,168.34,41.7297949]
[1729636145877,5.9389,168.38,168.34,41.7297949]
[1729636146071,5.9389,168.38,168.34,20.0]
[1729636148575,5.9389,168.38,168.33,21.7297949]
[1729636154201,5.9389,168.38,168.3,20.0]
[1729636154411,5.9389,168.38,168.32,21.7297949]
[1729636154784,5.9389,168.38,168.33,20.0]
[1729636155403,23.776884,168.41,168.3,20.0]
[1729636155705,23.776884,168.41,168.32,41.7297949]
[1729636156089,15.4180643,168.42,168.33,21.7297949]
[1729636156294,5.9388,168.39,168.33,21.7297949]
[1729636157609,5.9388,168.39,168.32,41.7297949]
[1729636160307,5.9378,168.41,168.32,21.7297949]
[1729636160513,5.9388,168.39,168.32,21.7297949]
[1729636162127,5.9388,168.39,168.37,5.0]
[1729636167319,5.9383,168.4,168.37,5.0]
[1729636173641,0.5734643,168.42,168.37,35.86489745]
[1729636173843,0.5734643,168.42,168.38,21.7297949]
[1729636175226,0.5734643,168.42,168.39,21.7297949]
[1729636175931,0.5734643,168.42,168.4,21.7297949]
[1729636178115,0.5734643,168.42,168.41,41.7297949]
[1729636179234,0.5734643,168.42,168.41,65.5066789]
[1729636181620,0.5734643,168.42,168.41,41.7297949]
[1729636182826,0.5734643,168.42,168.41,20.0]
[1729636183229,0.5734643,168.42,168.4,28.0524949]
[1729636183627,0.5734643,168.42,168.38,21.7297949]
[1729636184230,0.5734643,168.42,168.37,26.7297949]
[1729636184556,0.5734643,168.42,168.37,5.0]
[1729636187034,0.5734643,168.42,168.37,25.0]
[1729636188934,0.5734643,168.42,168.37,35.86489745]
[1729636189140,0.5734643,168.42,168.37,46.7297949]
[1729636191333,0.5734643,168.42,168.37,25.0]
[1729636196656,0.5734643,168.42,168.37,5.0]
[1729636197253,0.5734643,168.42,168.37,25.0]
[1729636200454,0.5734643,168.42,168.37,5.0]
[1729636200646,6.5112643,168.42,168.37,5.0]
[1729636201348,0.5734643,168.42,168.37,5.0]
[1729636201853,0.5734643,168.42,168.37,25.0]
[1729636204155,0.5734643,168.42,168.37,46.7297949]
[1729636205359,0.5734643,168.42,168.37,25.0]
[1729636206857,0.5734643,168.42,168.37,46.7297949]
[1729636207752,0.5734643,168.42,168.38,21.7297949]
[1729636207946,0.5734643,168.42,168.4,21.7297949]
[1729636209039,0.5734643,168.42,168.39,21.7297949]
[1729636209239,0.5734643,168.42,168.4,20.0]
[1729636211972,0.5734643,168.42,168.37,5.0]
[1729636212168,6.5112643,168.42,168.37,5.0]
[1729636215257,0.5734643,168.42,168.41,21.7297949]
[1729636215459,0.5734643,168.42,168.41,41.7297949]
[1729636215773,0.5734643,168.42,168.41,20.0]
[1729636215949,0.5734643,168.42,168.38,20.0]
[1729636217168,0.5734643,168.42,168.37,5.0]
[1729636218748,0.5734643,168.42,168.37,26.7297949]
[1729636218954,0.5734643,168.42,168.38,21.7297949]
[1729636224572,0.5734643,168.42,168.39,21.7297949]
[1729636224771,0.5734643,168.42,168.4,21.7297949]
[1729636225071,0.5734643,168.42,168.41,73.12034151]
[1729636229476,5.9332,168.55,168.42,43.776884]
[1729636229654,5.9333,168.54,168.48,21.7297949]
[1729636230770,5.9333,168.54,168.49,21.7297949]
[1729636230977,0.621204,168.58,168.53,21.7297949]
[1729636231269,0.621204,168.58,168.5,21.18680311]
[1729636231470,6.553104,168.58,168.52,21.7297949]
[1729636233063,0.621204,168.58,168.56,21.7297949]
[1729636233264,0.621204,168.58,168.55,21.7297949]
[1729636235759,0.621204,168.58,168.57,21.7297949]
[1729636236265,0.621204,168.58,168.57,65.5066789]
[1729636236466,0.621204,168.58,168.57,66.69251873]
[1729636237159,0.621204,168.58,168.57,66.79251873]
[1729636238295,0.621204,168.58,168.57,66.69251873]
[1729636239485,0.621204,168.58,168.57,136.79251873]
[1729636239685,22.2829,168.71,168.65,21.7297949]
[1729636240187,5.9276,168.7,168.59,1.18555896]
[1729636240485,5.9276,168.7,168.63,21.7297949]
[1729636242162,16.3556,168.71,168.67,21.7297949]
[1729636242367,22.2829,168.71,168.64,1.18565263]
[1729636242587,16.3556,168.71,168.61,20.0]
[1729636242759,5.9276,168.7,168.64,20.0]
[1729636243688,5.9276,168.7,168.64,41.7297949]
[1729636243875,5.9276,168.7,168.64,20.0]
[1729636244185,16.3556,168.71,168.61,1.18562238]
[1729636244484,5.9286,168.68,168.62,20.0]
[1729636245291,5.9286,168.68,168.62,41.7297949]
[1729636246089,5.9286,168.68,168.62,20.0]
[1729636246291,5.9286,168.68,168.62,41.7297949]
[1729636247873,14.8209,168.68,168.55,19.61421345]
[1729636248070,5.9308,168.62,168.55,19.61421345]
[1729636248266,15.4894,168.69,168.55,19.61421345]
[1729636248267,15.4894,168.69,168.61,21.7297949]
[1729636248476,15.4894,168.69,168.56,86.9191796]
[1729636248477,5.9283,168.68,168.63,21.7297949]
[1729636248874,5.9283,168.68,168.62,21.7297949]
[1729636249078,5.9287,168.67,168.61,21.7297949]
[1729636251594,5.9287,168.67,168.6,21.7297949]
[1729636252691,5.9291,168.66,168.6,20.0]
[1729636253593,5.9291,168.66,168.58,21.7297949]
[1729636253787,5.9291,168.66,168.59,20.0]
[1729636257586,5.9308,168.62,168.56,20.0]
[1729636257781,5.9311,168.61,168.55,13.53191345]
[1729636260208,5.9311,168.61,168.56,20.0]
[1729636262505,5.9312,168.6,168.56,20.0]
[1729636262696,38.599584,168.66,168.55,13.53191345]
[1729636262697,15.917,168.62,168.55,13.53191345]
[1729636262901,5.9322,168.57,168.55,13.53191345]
[1729636263083,5.9328,168.56,168.48,6.4964]
[1729636263503,5.9328,168.56,168.49,21.7297949]
[1729636263720,15.917,168.62,168.5,21.7297949]
[1729636263883,5.9321,168.58,168.5,21.7297949]
[1729636264214,5.9321,168.58,168.49,21.7297949]
[1729636264713,5.9321,168.58,168.48,28.2261949]
[1729636264920,5.9331,168.55,168.48,6.4964]
[1729636265410,5.9331,168.55,168.49,20.0]
[1729636266193,5.9333,168.54,168.49,20.0]
[1729636270920,5.9333,168.54,168.47,20.0]
[1729636271130,39.693884,168.58,168.45,20.0]
[1729636271420,23.776884,168.56,168.45,20.0]
[1729636271616,5.9343,168.51,168.45,20.0]
[1729636272726,5.9339,168.53,168.45,41.7297949]
[1729636273824,5.934,168.52,168.45,41.7297949]
[1729636275211,20.8591,168.57,168.45,20.0]
[1729636275212,5.9344,168.51,168.45,20.0]
[1729636276625,5.9344,168.51,168.45,41.7297949]
[1729636276802,5.9344,168.51,168.45,20.0]
[1729636277521,6.1285,168.57,168.45,20.0]
[1729636277715,5.935,168.5,168.45,20.0]
[1729636279316,5.935,168.5,168.39,0.1]
[1729636279317,15.8499,168.49,168.4,6.205]
[1729636279519,15.8499,168.49,168.38,15.7837]
[1729636279822,14.8385,168.48,168.4,6.18831375]
[1729636280021,5.9371,168.43,168.4,6.18831375]
[1729636280405,5.9375,168.42,168.4,6.18831375]
[1729636281433,14.8411,168.45,168.37,5.0]
[1729636281727,5.9386,168.39,168.37,5.0]
[1729636283319,15.8499,168.41,168.37,5.0]
[1729636283524,15.8499,168.46,168.37,26.7297949]
[1729636284027,15.8499,168.46,168.37,5.0]
[1729636284028,5.9372,168.43,168.37,5.0]
[1729636287025,5.9389,168.38,168.37,5.0]
[1729636287537,5.9408,168.33,168.27,6.205]
[1729636287832,14.8473,168.38,168.23,6.205]
[1729636287833,23.776884,168.37,168.23,6.205]
[1729636288038,23.776884,168.35,168.23,6.205]
[1729636288327,23.776884,168.33,168.23,6.205]
[1729636288514,5.9421,168.3,168.23,6.205]
[1729636288828,5.9421,168.29,168.23,6.205]
[1729636289029,23.776884,168.33,168.23,6.205]
[1729636289205,5.9424,168.28,168.23,6.205]
[1729636289412,5.943,168.27,168.2,20.0]
[1729636289921,15.8499,168.31,168.2,20.0]
[1729636290123,5.9431,168.27,168.2,20.0]
[1729636291421,5.9431,168.27,168.2,53.93862966]
[1729636295933,5.9431,168.27,168.2,20.0]
[1729636296134,5.9432,168.26,168.2,20.0]
[1729636297617,5.9435,168.25,168.18,66.34994417]
[1729636297834,5.9435,168.25,168.18,32.41131451]
[1729636299329,5.9435,168.25,168.19,20.0]
[1729636301446,5.9435,168.25,168.19,53.93862966]
[1729636301647,5.9431,168.27,168.19,53.93862966]
[1729636301835,5.9431,168.27,168.2,33.93862966]
[1729636302152,5.9421,168.29,168.21,33.93862966]
[1729636302441,15.8499,168.31,168.23,33.93862966]
[1729636302442,5.9421,168.3,168.23,33.93862966]
[1729636302746,5.9422,168.29,168.23,33.93862966]
[1729636305033,15.8499,168.31,168.24,33.93862966]
[1729636305229,15.8499,168.31,168.23,33.93862966]
[1729636305435,5.9419,168.3,168.23,33.93862966]
[1729636307745,5.9424,168.29,168.21,20.0]
[1729636307951,5.9424,168.29,168.21,53.93862966]
[1729636308957,5.9424,168.29,168.22,33.93862966]
[1729636309458,5.9424,168.29,168.23,20.0]
[1729636310055,5.9426,168.28,168.19,23.776884]
[1729636310257,5.9426,168.28,168.23,20.0]
[1729636311039,15.8499,168.31,168.23,20.0]
[1729636311355,5.9421,168.29,168.23,20.0]
[1729636311558,5.9425,168.28,168.21,21.71786786]
[1729636311852,5.9425,168.28,168.22,20.0]
[1729636312254,5.9432,168.26,168.2,20.0]
[1729636313843,15.8499,168.31,168.2,41.71786786]
[1729636314048,5.9428,168.27,168.2,41.71786786]
[1729636315738,5.9427,168.28,168.2,41.71786786]
[1729636316838,15.8499,168.31,168.2,41.71786786]
[1729636317047,5.9428,168.27,168.2,41.71786786]
[1729636317646,5.9423,168.29,168.22,21.71786786]
[1729636319865,5.9423,168.29,168.21,41.71786786]
[1729636324167,5.9431,168.27,168.19,20.0]
[1729636324851,5.9438,168.25,168.19,20.0]
[1729636325054,23.776884,168.3,168.19,20.0]
[1729636325378,5.944,168.24,168.19,20.0]
[1729636325560,5.944,168.24,168.18,16.62761451]
[1729636330353,49.946784,168.27,168.18,16.62761451]
[1729636330562,5.9431,168.26,168.18,16.62761451]
[1729636330870,5.9448,168.22,168.18,16.62761451]
[1729636332259,5.945,168.21,168.16,0.621204]
[1729636332455,23.776884,168.25,168.16,0.621204]
[1729636332662,5.9453,168.2,168.16,0.621204]
[1729636333782,5.9458,168.19,168.16,0.621204]
[1729636334076,5.9462,168.18,168.16,0.621204]
[1729636334585,5.9463,168.17,168.16,0.621204]
[1729636341959,6.1699,168.19,168.16,0.621204]
[1729636342288,5.9459,168.19,168.16,0.621204]
[1729636342975,5.946,168.18,168.16,0.621204]
[1729636343975,20.0,168.21,168.16,0.621204]
[1729636344180,15.0014,168.22,168.16,0.621204]
[1729636344477,5.9454,168.2,168.16,0.621204]
[1729636345659,15.0014,168.22,168.16,0.621204]
[1729636345859,5.9457,168.19,168.16,0.621204]
[1729636352556,5.9453,168.2,168.16,0.621204]
[1729636356170,43.776884,168.24,168.16,0.621204]
[1729636356365,49.720784,168.24,168.17,21.71786786]
[1729636356767,5.9442,168.23,168.16,22.33907186]
[1729636356965,5.9447,168.22,168.16,0.621204]
[1729636359683,43.776884,168.24,168.16,0.621204]
[1729636359866,5.9443,168.23,168.16,0.621204]
[1729636360062,5.9443,168.23,168.16,22.33907186]
[1729636361887,5.9443,168.23,168.16,0.621204]
[1729636362596,5.9443,168.23,168.16,22.33907186]
[1729636366490,5.9443,168.23,168.17,21.71786786]
[1729636367289,21.8622,168.26,168.2,21.71786786]
[1729636367479,21.8622,168.26,168.17,6.4648]
[1729636367480,16.95226189,168.3,168.24,21.71786786]
[1729636367796,6.20510644,168.3,168.25,21.71786786]
[1729636367997,5.9414,168.31,168.25,21.71786786]
[1729636368795,5.9414,168.31,168.24,21.71786786]
[1729636371201,5.9414,168.31,168.25,21.71786786]
[1729636372506,5.9414,168.31,168.24,21.71786786]
[1729636376503,43.776884,168.32,168.24,21.71786786]
[1729636376710,5.942,168.3,168.24,21.71786786]
[1729636377903,23.776884,168.32,168.17,6.4648]
[1729636377904,23.776884,168.32,168.25,21.71786786]
[1729636378114,5.9414,168.31,168.25,21.71786786]
[1729636380607,5.9414,168.31,168.24,21.71786786]
[1729636380819,23.776884,168.32,168.23,21.71786786]
[1729636381109,5.9421,168.29,168.23,21.71786786]
[1729636382404,5.9416,168.31,168.25,21.71786786]
[1729636383096,5.9416,168.31,168.26,21.71786786]
[1729636384116,15.9189,168.34,168.28,21.71786786]
[1729636384417,5.9408,168.33,168.29,21.71786786]
[1729636384824,5.9408,168.33,168.24,86.87147144]
[1729636386016,5.9403,168.34,168.29,21.71786786]
[1729636386217,5.9396,168.36,168.3,21.71786786]
[1729636386418,5.9404,168.34,168.29,21.71786786]
[1729636387235,5.9404,168.34,168.28,21.71786786]
[1729636389231,43.776884,168.35,168.23,6.5462]
[1729636389399,5.9417,168.31,168.24,21.71786786]
[1729636389905,5.9417,168.31,168.23,28.26406786]
[1729636390100,5.9419,168.3,168.23,28.26406786]
[1729636390429,15.2118,168.33,168.23,6.5462]
[1729636390602,5.9428,168.28,168.2,21.71786786]
[1729636390996,5.9428,168.28,168.21,21.71786786]
[1729636391909,5.9428,168.28,168.2,21.71786786]
[1729636392418,58.729484,168.32,168.2,21.71786786]
[1729636392616,5.9429,168.27,168.2,21.71786786]
[1729636397216,5.9429,168.27,168.19,28.26406786]
[1729636405314,5.9429,168.27,168.21,21.71786786]
[1729636405930,5.9416,168.31,168.23,21.71786786]
[1729636407010,5.9418,168.3,168.23,21.71786786]
[1729636407210,21.1528,168.33,168.26,21.71786786]
[1729636407432,17.13917734,168.37,168.26,21.71786786]
[1729636407620,5.9407,168.33,168.26,21.71786786]
[1729636408334,5.9403,168.34,168.27,21.71786786]
[1729636408519,5.9396,168.36,168.29,21.71786786]
[1729636408731,21.9459,168.37,168.3,21.71786786]
[1729636409029,21.9459,168.37,168.31,21.71786786]
[1729636409439,5.9394,168.37,168.31,21.71786786]
[1729636410216,5.9394,168.37,168.3,21.71786786]
[1729636412843,23.776884,168.38,168.29,21.71786786]
[1729636413134,20.0,168.35,168.25,27.76206786]
[1729636413309,23.776884,168.34,168.25,27.76206786]
[1729636413515,5.941,168.33,168.25,27.76206786]
[1729636413757,5.941,168.33,168.26,21.71786786]
[1729636414121,15.1626,168.35,168.27,21.71786786]
[1729636414322,15.1626,168.35,168.28,21.71786786]
[1729636414532,21.1026,168.35,168.29,21.71786786]
[1729636414944,5.94,168.35,168.29,21.71786786]
[1729636416340,30.0098,168.39,168.29,21.71786786]
[1729636416647,5.9393,168.37,168.31,21.71786786]
[1729636418151,23.776884,168.38,168.31,21.71786786]
[1729636418641,5.9393,168.37,168.31,21.71786786]
[1729636421251,5.9393,168.37,168.3,21.71786786]
[1729636422946,5.9393,168.37,168.31,21.71786786]
[1729636427049,5.9393,168.37,168.3,21.71786786]
[1729636429453,5.9397,168.36,168.29,37.18216786]
[1729636436356,5.9397,168.36,168.3,21.71786786]
[1729636437247,5.9389,168.38,168.31,21.71786786]
[1729636437753,5.9386,168.39,168.32,21.71786786]
[1729636437959,5.939,168.38,168.32,21.71786786]
[1729636440557,23.776884,168.41,168.33,21.71786786]
[1729636440734,5.9382,168.4,168.33,21.71786786]
[1729636441661,6.20326771,168.42,168.35,21.71786786]
[1729636441835,5.9376,168.42,168.36,21.71786786]
[1729636442964,15.1626,168.43,168.35,21.71786786]
[1729636443259,5.9379,168.41,168.34,21.71786786]
[1729636459979,15.1626,168.43,168.37,21.71786786]
[1729636460157,5.9368,168.44,168.38,21.71786786]
[1729636460776,5.9365,168.45,168.39,21.71786786]
[1729636465285,15.2217,168.48,168.39,21.71786786]
[1729636465467,5.9363,168.46,168.39,21.71786786]
[1729636465776,5.9368,168.44,168.38,20.0]
[1729636467073,5.9365,168.45,168.38,41.71786786]
[1729636467275,5.9365,168.45,168.39,21.71786786]
[1729636472788,5.9365,168.45,168.38,41.71786786]
[1729636472983,5.9365,168.45,168.38,21.71786786]
[1729636476089,5.9365,168.45,168.37,6.3721]
[1729636476291,5.9365,168.45,168.38,21.71786786]
[1729636477317,5.9362,168.46,168.38,21.71786786]
[1729636486199,29.712884,168.47,168.38,21.71786786]
[1729636486369,5.9362,168.46,168.38,21.71786786]
[1729636487197,5.9362,168.46,168.39,21.71786786]
[1729636487888,5.9362,168.46,168.38,21.71786786]
[1729636496780,5.9362,168.46,168.37,6.3721]
[1729636496981,5.9362,168.46,168.37,28.08996786]
[1729636500809,5.9362,168.46,168.38,21.71786786]
[1729636501678,15.2217,168.48,168.39,21.71786786]
[1729636501881,15.2217,168.48,168.37,6.3721]
[1729636501882,21.1571,168.48,168.4,21.71786786]
[1729636502095,21.1571,168.48,168.41,21.71786786]
[1729636502304,5.9346,168.51,168.43,21.71786786]
[1729636503004,15.978,168.53,168.44,21.71786786]
[1729636503213,5.9332,168.55,168.47,21.71786786]
[1729636506812,22.588,168.58,168.47,21.71786786]
[1729636506990,5.9324,168.57,168.48,21.71786786]
[1729636507191,5.9324,168.57,168.47,15.8405]
[1729636507192,5.9324,168.57,168.49,21.71786786]
[1729636508890,5.9324,168.57,168.5,21.71786786]
[1729636510211,21.9099,168.58,168.51,21.71786786]
[1729636510412,5.9315,168.59,168.52,21.71786786]
[1729636511524,37.4143,168.62,168.55,21.71786786]
[1729636511525,21.9085,168.62,168.55,21.71786786]
[1729636512103,21.9085,168.62,168.54,21.71786786]
[1729636513820,15.978,168.62,168.54,21.71786786]
[1729636514014,15.978,168.62,168.55,21.71786786]
[1729636514202,15.978,168.62,168.54,21.71786786]
[1729636514410,5.9308,168.61,168.53,21.71786786]
[1729636514999,5.9308,168.61,168.54,21.71786786]
[1729636517208,5.9308,168.61,168.55,21.71786786]
[1729636517710,5.9308,168.61,168.54,21.71786786]
[1729636519333,5.9308,168.61,168.55,21.71786786]
[1729636520033,5.9308,168.61,168.54,21.71786786]
[1729636521028,5.9308,168.61,168.55,21.71786786]
[1729636522249,5.9308,168.61,168.54,21.71786786]
[1729636525827,15.978,168.62,168.54,21.71786786]
[1729636526037,5.9312,168.6,168.54,21.71786786]
[1729636527562,5.9312,168.6,168.52,15.8028]
[1729636527863,5.9312,168.6,168.54,21.71786786]
[1729636537747,21.9087,168.62,168.55,21.71786786]
[1729636537952,21.9087,168.62,168.56,21.71786786]
[1729636541025,6.19416761,168.66,168.6,21.71786786]
[1729636541455,5.9291,168.66,168.6,21.71786786]
[1729636550176,15.3876,168.67,168.57,15.0295]
[1729636550368,23.776884,168.66,168.55,6.213]
[1729636550551,5.9315,168.6,168.53,15.2641]
[1729636560560,5.9317,168.59,168.52,11.19358321]
[1729636561152,5.9326,168.56,168.52,11.19358321]
[1729636561983,16.6347,168.61,168.52,11.19358321]
[1729636562272,5.9319,168.58,168.52,11.19358321]
[1729636563180,5.9315,168.59,168.52,11.19358321]
[1729636564782,5.9312,168.6,168.52,32.91145107]
[1729636567359,6.5341,168.64,168.54,21.71786786]
[1729636567681,5.9305,168.62,168.54,21.71786786]
[1729636569274,5.9313,168.6,168.53,20.0]
[1729636569479,5.9322,168.58,168.52,11.19358321]
[1729636573994,5.9328,168.56,168.52,11.19358321]
[1729636578299,5.9328,168.56,168.5,20.0]
[1729636579222,5.9328,168.56,168.49,15.2641]
[1729636582828,5.9328,168.56,163.44,116.76841605]
[1729636582829,5.9353,168.49,168.43,6.1363]
[1729636583013,5.9351,168.49,168.43,6.1363]
[1729636583202,5.9336,168.53,168.43,6.1363]
[1729636583533,5.9336,168.53,168.44,21.71786786]
[1729636583880,23.776884,168.54,168.44,21.71786786]
[1729636584082,23.776884,168.55,168.45,21.71786786]
[1729636584291,5.9333,168.54,168.45,21.71786786]
[1729636584510,5.9333,168.54,168.46,21.71786786]
[1729636584819,5.9329,168.55,168.47,21.71786786]
[1729636584987,15.4612,168.58,168.49,21.71786786]
[1729636585990,5.9326,168.56,168.49,21.71786786]
[1729636586191,5.933,168.55,168.47,20.0]
[1729636586610,5.934,168.52,168.43,27.85416786]
[1729636586917,5.9344,168.51,168.43,6.1363]
[1729636588291,5.9344,168.51,168.44,20.0]
[1729636591922,5.9344,168.51,168.44,41.71786786]
[1729636592820,5.9344,168.51,168.44,20.0]
[1729636595933,5.9344,168.51,168.43,6.1363]
[1729636600725,5.9344,168.51,168.43,6.0022005]
[1729636601604,5.9343,168.51,168.43,6.0022005]
[1729636602217,5.9349,168.5,168.43,6.0022005]
[1729636602419,15.2431,168.52,168.42,20.0]
[1729636602420,5.9351,168.49,168.42,20.0]
[1729636602622,5.9354,168.48,168.42,20.0]
[1729636606715,5.9355,168.48,168.41,15.2007]
[1729636614237,5.9357,168.47,168.41,20.0]
[1729636614437,5.9357,168.47,168.39,33.15077733]
[1729636614639,5.9357,168.47,168.39,11.43290947]
[1729636617012,5.9343,168.51,168.39,22.2918434]
[1729636617232,5.9343,168.51,168.44,21.71786786]
[1729636617233,5.9344,168.51,168.44,21.71786786]
[1729636617618,5.9344,168.51,168.43,21.71786786]
[1729636618733,5.9343,168.51,168.43,21.71786786]
[1729636620341,15.2431,168.52,168.43,21.71786786]
[1729636620544,43.776884,168.54,168.46,21.71786786]
[1729636620721,23.776884,168.55,168.44,28.13326786]
[1729636621050,20.0,168.53,168.44,6.4154]
[1729636621352,5.9346,168.51,168.44,6.4154]
[1729636623829,5.935,168.5,168.43,21.71786786]
[1729636624232,5.9354,168.48,168.4,26.2865]
[1729636624438,5.9358,168.47,168.4,6.2865]
[1729636625428,5.9361,168.46,168.4,6.2865]
[1729636625638,5.9361,168.46,168.39,11.43290947]
[1729636625840,5.9355,168.48,168.4,21.71786786]
[1729636628042,5.9355,168.48,168.41,21.71786786]
[1729636629219,5.9355,168.48,168.4,21.71786786]
[1729636631545,5.9355,168.48,168.41,21.71786786]
[1729636632541,5.9355,168.48,168.39,11.43290947]
[1729636632747,5.9355,168.48,168.41,21.71786786]
[1729636633451,5.9348,168.5,168.44,21.71786786]
[1729636633830,5.9348,168.5,168.43,21.71786786]
[1729636634355,5.9348,168.5,168.42,21.71786786]